bitfinex/quotes_BTCUSD_20250523
["timestamp","ask_amount","ask_price","bid_price","bid_amount"]
[1748017476378,0.21728704,108510.0,108500.0,3.659175]
[1748017476714,0.21728704,108510.0,108500.0,4.384775]
[1748017476835,0.21728704,108510.0,108500.0,4.108575]
[1748017477041,0.21728704,108510.0,108500.0,1.12328]
[1748017477042,0.3689326,108510.0,108500.0,1.12328]
[1748017477255,0.80879526,108510.0,108500.0,1.12328]
[1748017477478,0.26968905,108500.0,108490.0,0.2772]
[1748017477829,0.79909727,108500.0,108490.0,0.2772]
[1748017478256,0.79909727,108500.0,108490.0,0.6172]
[1748017481860,0.35923461,108500.0,108490.0,1.476309]
[1748017482185,0.35923461,108500.0,108490.0,0.6172]
[1748017482807,0.79909727,108500.0,108490.0,0.6172]
[1748017483420,0.79884727,108500.0,108490.0,0.6172]
[1748017483804,0.79884727,108500.0,108490.0,0.61724]
[1748017484012,0.79884727,108500.0,108490.0,0.001]
[1748017487726,0.35898461,108500.0,108490.0,0.001]
[1748017487936,0.79884727,108500.0,108490.0,0.001]
[1748017489665,30.88836878,108500.0,108490.0,0.001]
[1748017489882,0.2815426,108480.0,108470.0,0.44948]
[1748017490036,0.2815426,108480.0,108460.0,0.67392]
[1748017490037,0.20814258,108470.0,108460.0,0.39768]
[1748017490237,0.29768814,108470.0,108460.0,1.800638]
[1748017490443,0.29768814,108470.0,108460.0,2.391556]
[1748017490676,0.29768814,108470.0,108460.0,2.51627783]
[1748017491065,0.29768814,108470.0,108460.0,2.85627783]
[1748017491693,0.29768814,108470.0,108460.0,2.34580883]
[1748017491918,0.20814258,108470.0,108460.0,1.44105964]
[1748017492144,0.20814258,108470.0,108460.0,2.22049983]
[1748017492691,0.20814258,108470.0,108460.0,2.18839983]
[1748017493577,0.20814258,108470.0,108460.0,2.22839983]
[1748017494306,0.20814258,108470.0,108460.0,1.47183983]
[1748017494504,0.6645031,108470.0,108460.0,1.38016883]
[1748017494750,0.6645031,108470.0,108460.0,1.65644883]
[1748017495158,0.6645031,108470.0,108460.0,1.38016883]
[1748017495362,0.6645031,108470.0,108460.0,1.58928783]
[1748017495769,0.6645031,108470.0,108460.0,0.75288183]
[1748017495998,0.6645031,108470.0,108460.0,2.24762083]
[1748017496210,0.29768814,108470.0,108460.0,2.11432083]
[1748017496385,0.20814258,108470.0,108460.0,2.11432083]
[1748017496631,0.7286031,108470.0,108460.0,0.26534183]
[1748017496839,0.20816043,108460.0,108450.0,0.72584]
[1748017497042,0.66452095,108460.0,108450.0,1.531977]
[1748017497489,0.66452095,108460.0,108450.0,1.194202]
[1748017497933,0.66452095,108460.0,108450.0,1.06584]
[1748017498143,0.66452095,108460.0,108450.0,0.72634733]
[1748017498558,0.66452095,108460.0,108450.0,1.06634733]
[1748017498907,0.30692572,108460.0,108450.0,1.06634733]
[1748017499107,0.20282027,108470.0,108460.0,0.34]
[1748017499336,0.2028207,108470.0,108460.0,1.772562]
[1748017499795,0.21736155,108470.0,108460.0,1.772562]
[1748017500957,0.00921837,108470.0,108460.0,2.03068116]
[1748017501213,0.02765604,108470.0,108460.0,2.04912002]
[1748017501385,0.02765612,108470.0,108460.0,2.03990072]
[1748017501748,30.0,108500.0,108490.0,0.34]
[1748017501956,29.9743565,108500.0,108490.0,6.06836298]
[1748017502164,29.98357249,108500.0,108490.0,6.06836298]
[1748017502374,29.9743565,108500.0,108490.0,6.06836298]
[1748017502583,29.98357249,108500.0,108490.0,6.06836298]
[1748017503005,29.98372446,108500.0,108490.0,6.06836298]
[1748017503221,29.99294062,108500.0,108490.0,6.06836298]
[1748017503360,29.99294062,108500.0,108490.0,6.10836298]
[1748017503570,30.00748147,108500.0,108490.0,6.10836298]
[1748017504006,29.99826531,108500.0,108490.0,6.10836298]
[1748017504211,30.00748156,108500.0,108490.0,6.10836298]
[1748017504776,29.98904932,108500.0,108490.0,6.10836298]
[1748017505480,29.99826531,108500.0,108490.0,6.10836298]
[1748017505596,30.0166978,108500.0,108490.0,6.10836298]
[1748017505843,30.19181402,108500.0,108490.0,4.9368633]
[1748017506044,30.00748173,108500.0,108490.0,5.60454558]
[1748017506259,30.01669755,108500.0,108490.0,5.60454558]
[1748017506456,30.01669738,108500.0,108490.0,5.60454558]
[1748017506662,30.19181402,108500.0,108490.0,5.36184552]
[1748017507273,30.19181402,108500.0,108490.0,5.57721913]
[1748017507566,30.19181402,108500.0,108490.0,5.59565357]
[1748017507845,30.20103002,108500.0,108490.0,5.59565357]
[1748017508290,30.20103002,108500.0,108490.0,5.60487058]
[1748017508495,30.20103002,108500.0,108490.0,5.59565357]
[1748017508797,30.19181318,108500.0,108490.0,5.60487058]
[1748017508993,30.20102951,108500.0,108490.0,5.6140875]
[1748017509200,30.01669772,108500.0,108490.0,5.61408699]
[1748017509408,30.01669772,108500.0,108490.0,5.26487015]
[1748017509614,30.02591413,108500.0,108490.0,5.27408699]
[1748017510316,30.2194625,108500.0,108490.0,5.26487015]
[1748017510515,30.21024592,108500.0,108490.0,5.26487015]
[1748017510737,30.21024592,108500.0,108490.0,5.27408699]
[1748017510937,30.00748139,108500.0,108490.0,5.27408699]
[1748017511095,30.0166978,108500.0,108490.0,5.27408699]
[1748017511295,30.01669772,108500.0,108490.0,5.27408699]
[1748017511552,29.99826523,108500.0,108490.0,5.61408699]
[1748017511725,30.01669772,108500.0,108490.0,5.61408699]
[1748017511927,30.00748139,108500.0,108490.0,5.61408699]
[1748017512130,30.00748131,108500.0,108490.0,5.61408699]
[1748017512362,30.01669756,108500.0,108490.0,5.61408699]
[1748017512559,30.01669756,108500.0,108490.0,5.61396699]
[1748017512969,30.02591397,108500.0,108490.0,5.61396699]
[1748017514639,30.01669756,108500.0,108490.0,5.61396699]
[1748017514860,0.01454085,108470.0,108450.0,0.16072]
[1748017515041,0.20817829,108450.0,108440.0,0.01465238]
[1748017515240,0.64807799,108450.0,108440.0,0.01465238]
[1748017515445,0.65807799,108450.0,108440.0,0.01465238]
[1748017516028,0.64807799,108450.0,108440.0,0.01465238]
[1748017516515,0.64812861,108450.0,108440.0,0.01465238]
[1748017516684,0.19365529,108440.0,108430.0,0.78788]
[1748017516901,0.64809584,108440.0,108430.0,0.78788]
[1748017517856,0.65809584,108440.0,108430.0,0.78788]
[1748017518299,0.65809584,108440.0,108430.0,0.78808]
[1748017519732,0.7476414,108440.0,108430.0,0.78808]
[1748017520234,1.26706261,108440.0,108430.0,0.02]
[1748017522931,1.29256261,108440.0,108430.0,0.02]
[1748017524183,1.29356261,108440.0,108430.0,0.02]
[1748017524393,1.56892261,108440.0,108430.0,0.02]
[1748017525243,1.58349261,108440.0,108430.0,0.02]
[1748017525922,1.59659261,108440.0,108430.0,0.02]
[1748017526126,1.2152111,108440.0,108430.0,0.02]
[1748017526368,1.4915711,108440.0,108430.0,0.02]
[1748017526765,1.1875411,108440.0,108430.0,0.02]
[1748017526909,1.2152101,108440.0,108430.0,0.02]
[1748017527961,1.1875411,108440.0,108430.0,0.02]
[1748017529073,0.33490356,108440.0,108430.0,0.02]
[1748017529279,0.28320085,108440.0,108430.0,0.512]
[1748017529490,0.28320085,108440.0,108430.0,0.97534]
[1748017530169,0.28320085,108440.0,108430.0,1.37534]
[1748017530368,0.28320085,108440.0,108430.0,1.496422]
[1748017530369,0.2977417,108440.0,108430.0,1.496422]
[1748017530573,0.28320085,108440.0,108430.0,1.496422]
[1748017530789,0.2977417,108440.0,108430.0,1.94181751]
[1748017530997,0.28320085,108440.0,108430.0,1.94181751]
[1748017531208,0.2977417,108440.0,108430.0,1.94181751]
[1748017531408,0.28320085,108440.0,108430.0,1.94181751]
[1748017531615,0.2977417,108440.0,108430.0,1.80486151]
[1748017532639,0.2977417,108440.0,108430.0,1.92546151]
[1748017532982,0.18443378,108440.0,108430.0,1.94390632]
[1748017533183,0.21209772,108440.0,108430.0,1.92546151]
[1748017533354,0.20287655,108440.0,108430.0,1.92546151]
[1748017533804,0.2174174,108440.0,108430.0,1.92546151]
[1748017534423,0.2171674,108440.0,108430.0,2.18738151]
[1748017535014,0.2171674,108440.0,108430.0,2.3718323]
[1748017535240,0.1844674,108450.0,108440.0,0.59565512]
[1748017535455,0.20290847,108450.0,108440.0,1.22711849]
[1748017535650,0.29245403,108450.0,108440.0,0.47319849]
[1748017535910,0.30699488,108450.0,108440.0,0.87319849]
[1748017536113,0.30699488,108450.0,108440.0,1.62711849]
[1748017536287,0.30699488,108450.0,108440.0,0.87319849]
[1748017536465,0.30699488,108450.0,108440.0,2.02511849]
[1748017537277,0.30699488,108450.0,108440.0,1.27119849]
[1748017537480,0.30699488,108450.0,108440.0,2.02511849]
[1748017538435,0.30699488,108450.0,108440.0,2.02507849]
[1748017538636,0.30699488,108450.0,108440.0,0.87319849]
[1748017538878,0.74689458,108450.0,108440.0,0.802]
[1748017539085,0.74689458,108450.0,108440.0,1.19996]
[1748017539288,0.74689458,108450.0,108440.0,1.95384]
[1748017539505,0.30699488,108450.0,108440.0,1.95384]
[1748017539711,0.67405314,108450.0,108440.0,1.92254]
[1748017540173,0.67405314,108450.0,108440.0,1.16866]
[1748017540405,0.20819614,108440.0,108430.0,0.0838]
[1748017540600,0.66479996,108440.0,108430.0,1.57564]
[1748017540758,0.66479996,108440.0,108430.0,1.97564]
[1748017541124,0.2977417,108440.0,108430.0,0.88176]
[1748017541330,0.66479996,108440.0,108430.0,1.17184]
[1748017541637,0.66479996,108440.0,108430.0,0.75796]
[1748017541839,0.66479996,108440.0,108430.0,1.51184]
[1748017542054,0.2977417,108440.0,108430.0,1.51184]
[1748017545193,0.2977417,108440.0,108430.0,1.51188]
[1748017545419,0.2977417,108440.0,108430.0,1.97448]
[1748017546718,0.66479996,108440.0,108430.0,1.94318]
[1748017547185,0.2977417,108440.0,108430.0,2.06380151]
[1748017547389,0.28320085,108440.0,108430.0,2.19148151]
[1748017547798,0.2977417,108440.0,108430.0,2.19148151]
[1748017548222,0.21209772,108440.0,108430.0,2.3759323]
[1748017548433,0.23054024,108440.0,108430.0,2.39437711]
[1748017548632,0.22131924,108440.0,108430.0,2.40359964]
[1748017548784,0.21209772,108440.0,108430.0,2.41282183]
[1748017548989,0.2213194,108440.0,108430.0,2.41282183]
[1748017549393,0.21209772,108440.0,108430.0,2.41282141]
[1748017549597,0.22131932,108440.0,108430.0,2.42204343]
[1748017549749,0.22131932,108440.0,108430.0,2.41282141]
[1748017549950,0.20287621,108440.0,108430.0,2.42204343]
[1748017550227,0.00922092,108440.0,108430.0,2.40439837]
[1748017550647,0.01844201,108440.0,108430.0,2.35118443]
[1748017551184,0.22131848,108440.0,108430.0,2.35118443]
[1748017551620,0.23054008,108440.0,108430.0,2.35118485]
[1748017551898,0.01844201,108440.0,108430.0,2.36040679]
[1748017552095,0.02766335,108440.0,108430.0,2.36040679]
[1748017552302,0.02766327,108440.0,108430.0,2.36040679]
[1748017552811,0.22131856,108440.0,108430.0,2.36040679]
[1748017553171,0.2174174,108440.0,108430.0,1.59738757]
[1748017555401,0.2174174,108440.0,108430.0,1.59730757]
[1748017557161,0.2174174,108440.0,108430.0,2.18244657]
[1748017557373,0.20287655,108440.0,108430.0,2.37611989]
[1748017557575,0.20287647,108440.0,108430.0,2.39456453]
[1748017557828,0.21209807,108440.0,108430.0,2.3945647]
[1748017558002,0.20287647,108440.0,108430.0,2.40378698]
[1748017558198,0.22131966,108440.0,108430.0,2.41300875]
[1748017559371,0.0276642,108440.0,108430.0,2.41300875]
[1748017559517,0.01844226,108440.0,108430.0,2.41300824]
[1748017559730,0.02766369,108440.0,108430.0,2.41300824]
[1748017559934,0.0368852,108440.0,108430.0,2.41300824]
[1748017560115,0.01844226,108440.0,108430.0,2.41300824]
[1748017560329,5.062e-05,108450.0,108440.0,0.62521915]
[1748017560533,0.21205887,108460.0,108450.0,0.61597834]
[1748017560748,0.02765901,108460.0,108450.0,3.03695559]
[1748017560954,0.22127868,108460.0,108450.0,2.62319035]
[1748017561149,0.0276585,108460.0,108450.0,2.51277659]
[1748017561415,0.0184375,108470.0,108460.0,0.36765884]
[1748017561625,0.01843716,108470.0,108460.0,3.24346161]
[1748017561835,0.01843716,108470.0,108460.0,3.04685061]
[1748017562319,0.00921845,108470.0,108460.0,3.04685061]
[1748017562538,0.02765586,108470.0,108460.0,3.04685061]
[1748017562775,0.01843707,108470.0,108460.0,3.04685061]
[1748017562993,0.00921845,108470.0,108460.0,3.04685061]
[1748017563216,0.01843707,108470.0,108460.0,3.04685061]
[1748017563673,0.21206918,108480.0,108470.0,0.6166394]
[1748017563872,0.21206918,108480.0,108470.0,3.12929427]
[1748017564077,0.21206918,108480.0,108470.0,3.03650127]
[1748017564279,0.19356621,108490.0,108480.0,0.58896578]
[1748017564621,30.1679505,108500.0,108490.0,0.60738322]
[1748017564829,30.18638316,108500.0,108490.0,1.31450878]
[1748017565035,30.177167,108500.0,108490.0,1.21968151]
[1748017565239,30.177167,108500.0,108490.0,1.61968151]
[1748017565483,30.177167,108500.0,108490.0,1.80403029]
[1748017565684,30.177167,108500.0,108490.0,1.81324764]
[1748017565889,30.17731913,108500.0,108490.0,1.81324764]
[1748017566327,29.97450863,108500.0,108490.0,2.69017896]
[1748017566533,29.97450863,108500.0,108490.0,2.70861289]
[1748017567408,29.99294087,108500.0,108490.0,1.94618443]
[1748017567633,30.19181393,108500.0,108490.0,0.94549114]
[1748017567843,30.19181393,108500.0,108490.0,1.54380114]
[1748017570118,30.19181393,108500.0,108490.0,1.54368114]
[1748017570729,30.19181393,108500.0,108490.0,0.81832114]
[1748017570943,30.19181393,108500.0,108490.0,1.54368114]
[1748017571143,30.19181393,108500.0,108490.0,1.63320265]
[1748017572025,30.19181393,108500.0,108490.0,0.90784265]
[1748017572226,30.19181393,108500.0,108490.0,1.63320265]
[1748017573985,30.28135949,108500.0,108490.0,0.81832114]
[1748017574196,30.28135949,108500.0,108490.0,1.47908114]
[1748017574407,30.28135949,108500.0,108490.0,1.07908114]
[1748017576703,30.28135949,108500.0,108490.0,0.44908]
[1748017576921,30.72133566,108500.0,108490.0,0.72532]
[1748017577309,30.72133566,108500.0,108490.0,0.27624]
[1748017578850,30.28135949,108500.0,108490.0,0.27624]
[1748017579085,0.19356604,108490.0,108480.0,0.77108]
[1748017579248,0.2831116,108490.0,108480.0,1.49636]
[1748017579515,0.2831116,108490.0,108480.0,0.43108]
[1748017579663,0.18436578,108480.0,108470.0,0.41395881]
[1748017579859,0.20816043,108460.0,108450.0,0.0643]
[1748017580053,0.29770599,108460.0,108450.0,1.12958]
[1748017580259,0.29770599,108460.0,108450.0,1.52958]
[1748017580557,0.29770599,108460.0,108450.0,1.61910151]
[1748017581276,0.29770599,108460.0,108450.0,1.61960884]
[1748017581820,0.29770599,108460.0,108450.0,1.61964884]
[1748017582228,0.29770599,108460.0,108450.0,0.90812443]
[1748017582430,0.29770599,108460.0,108450.0,1.63344443]
[1748017582849,0.29770599,108460.0,108450.0,1.42686874]
[1748017583072,0.29770599,108460.0,108450.0,1.22914443]
[1748017585063,0.29770599,108460.0,108450.0,1.56914443]
[1748017586037,0.29770599,108460.0,108450.0,1.60214443]
[1748017586814,0.29770599,108460.0,108450.0,1.63274443]
[1748017587035,0.03298039,108460.0,108450.0,1.81716121]
[1748017587245,0.18438277,108470.0,108460.0,0.5969195]
[1748017587246,0.20282044,108470.0,108460.0,0.5969195]
[1748017587461,0.18434878,108490.0,108470.0,0.55203915]
[1748017587675,0.09876274,108490.0,108480.0,3.05178303]
[1748017587895,0.02765136,108490.0,108480.0,3.35833689]
[1748017588072,0.22121749,108490.0,108480.0,3.36755458]
[1748017588301,0.23043492,108490.0,108480.0,3.35833689]
[1748017588509,0.23043492,108490.0,108480.0,3.4478584]
[1748017588743,0.03686871,108490.0,108480.0,2.89745117]
[1748017588971,0.02765136,108490.0,108480.0,2.89745058]
[1748017589856,0.00921667,108490.0,108480.0,2.87931435]
[1748017590068,29.9743565,108500.0,108490.0,0.61560006]
[1748017590287,29.9743565,108500.0,108490.0,2.88920255]
[1748017590516,29.99278831,108500.0,108490.0,2.88920255]
[1748017590744,29.9743565,108500.0,108490.0,3.118289]
[1748017590959,29.9743565,108500.0,108490.0,3.08981928]
[1748017591382,29.97450863,108500.0,108490.0,3.08981928]
[1748017595157,29.97450863,108500.0,108490.0,3.17936484]
[1748017598387,29.98372445,108500.0,108490.0,3.17936484]
[1748017598968,29.97450863,108500.0,108490.0,3.17936484]
[1748017599735,29.98372445,108500.0,108490.0,3.17936484]
[1748017599945,29.97450863,108500.0,108490.0,3.17936484]
[1748017600157,30.19181334,108500.0,108490.0,1.19271149]
[1748017600368,30.19181384,108500.0,108490.0,1.23374878]
[1748017600586,29.98372454,108500.0,108490.0,2.77447131]
[1748017600797,30.01137344,108500.0,108490.0,2.51670524]
[1748017601017,30.19570523,108500.0,108490.0,2.3791584]
[1748017601226,30.19570523,108500.0,108490.0,2.47789692]
[1748017602394,30.01137344,108500.0,108490.0,2.48711376]
[1748017603212,29.98372454,108500.0,108490.0,2.48711376]
[1748017603468,30.00215695,108500.0,108490.0,2.48711376]
[1748017603687,30.00215687,108500.0,108490.0,2.93367376]
[1748017603898,30.0113732,108500.0,108490.0,2.93367376]
[1748017604545,30.02058961,108500.0,108490.0,2.7006937]
[1748017604683,30.0205902,108500.0,108490.0,2.59367376]
[1748017605106,30.0113737,108500.0,108490.0,2.59367376]
[1748017606293,30.19570549,108500.0,108490.0,2.59367376]
[1748017606500,30.20492207,108500.0,108490.0,2.59367376]
[1748017607048,30.19570558,108500.0,108490.0,2.59367376]
[1748017607670,30.01137379,108500.0,108490.0,2.59367376]
[1748017608101,29.99294053,108500.0,108490.0,2.59367376]
[1748017608309,30.00215678,108500.0,108490.0,2.59367376]
[1748017608515,30.01137319,108500.0,108490.0,2.59367376]
[1748017608725,30.00215678,108500.0,108490.0,2.59367376]
[1748017608934,30.00215686,108500.0,108490.0,2.59367376]
[1748017609370,29.99294053,108500.0,108490.0,2.59367376]
[1748017609594,29.99294053,108500.0,108490.0,3.33139376]
[1748017609807,29.98372445,108500.0,108490.0,3.33139376]
[1748017610012,29.99294044,108500.0,108490.0,3.33139376]
[1748017611025,29.98372462,108500.0,108490.0,3.33135376]
[1748017611239,29.97450863,108500.0,108490.0,3.33135376]
[1748017611440,29.97450863,108500.0,108490.0,3.42089932]
[1748017617016,29.97450863,108500.0,108490.0,3.42971172]
[1748017622580,29.97450863,108500.0,108490.0,3.45419773]
[1748017622802,29.9284808,108500.0,108490.0,3.10019773]
[1748017623007,29.86370297,108500.0,108490.0,3.10019773]
[1748017623284,29.85156514,108500.0,108490.0,3.10019773]
[1748017623499,29.79376511,108500.0,108490.0,3.50019773]
[1748017623679,29.78902511,108500.0,108490.0,3.53082224]
[1748017623930,29.74299728,108500.0,108490.0,3.54178953]
[1748017624146,29.69696945,108500.0,108490.0,3.54178953]
[1748017624361,29.64627576,108500.0,108490.0,3.54178953]
[1748017624589,29.59448572,108500.0,108490.0,3.54178953]
[1748017624810,29.54846162,108500.0,108490.0,3.54178953]
[1748017625029,29.50243752,108500.0,108490.0,3.32424075]
[1748017625248,29.50243752,108500.0,108490.0,3.50858953]
[1748017625249,29.48548752,108500.0,108490.0,3.50858953]
[1748017625472,29.43946342,108500.0,108490.0,3.50858953]
[1748017625884,29.39343932,108500.0,108490.0,3.48410352]
[1748017626115,29.34741522,108500.0,108490.0,3.48410352]
[1748017626411,29.34741522,108500.0,108490.0,3.47313623]
[1748017626412,29.30139112,108500.0,108490.0,3.47313623]
[1748017626602,29.27139112,108500.0,108490.0,3.47313623]
[1748017627070,29.21736702,108500.0,108490.0,3.88653623]
[1748017627294,29.08414719,108500.0,108490.0,3.9110031]
[1748017627510,29.03812309,108500.0,108490.0,3.9110031]
[1748017627733,28.96182309,108500.0,108490.0,3.95099265]
[1748017627948,28.92209016,108500.0,108490.0,3.95099265]
[1748017628153,28.87582016,108500.0,108490.0,3.98229265]
[1748017628413,28.87582016,108500.0,108490.0,3.91373843]
[1748017628414,28.11995071,108500.0,108490.0,3.91373843]
[1748017628626,28.07392661,108500.0,108490.0,3.91373843]
[1748017628838,27.82113661,108500.0,108490.0,3.91373843]
[1748017629063,27.51956276,108500.0,108490.0,3.91373843]
[1748017629286,27.3861044,108500.0,108490.0,3.92827928]
[1748017629505,27.3066044,108500.0,108490.0,3.92827928]
[1748017629751,26.99674759,108500.0,108490.0,3.92827928]
[1748017629980,25.51864041,108500.0,108490.0,3.90066437]
[1748017630190,24.97125147,108500.0,108490.0,3.86936437]
[1748017630398,24.97125147,108500.0,108490.0,3.84032437]
[1748017630399,24.96132015,108500.0,108490.0,3.84032437]
[1748017630606,24.84261963,108500.0,108490.0,3.84032437]
[1748017630818,17.9893467,108500.0,108490.0,3.65090437]
[1748017631065,16.58665749,108500.0,108490.0,3.78031031]
[1748017631334,11.82145233,108500.0,108490.0,4.47378357]
[1748017631546,7.35407109,108500.0,108490.0,3.91768393]
[1748017631769,2.73734579,108500.0,108490.0,8.63744937]
[1748017632019,0.04955007,108560.0,108550.0,0.37842375]
[1748017632217,0.12087875,108580.0,108570.0,0.55184386]
[1748017632425,0.07370284,108580.0,108570.0,5.29177527]
[1748017632638,0.06449364,108580.0,108570.0,5.70098532]
[1748017633462,0.29270603,108600.0,108590.0,0.54259649]
[1748017633743,0.31112206,108600.0,108590.0,5.19298243]
[1748017634017,0.34382206,108600.0,108590.0,5.20219112]
[1748017634228,0.13203489,108600.0,108590.0,5.20219112]
[1748017634433,0.33461238,108600.0,108590.0,5.20219112]
[1748017634666,0.34382031,108600.0,108590.0,5.19298243]
[1748017634849,0.15045032,108600.0,108590.0,5.22060808]
[1748017635107,0.34382039,108600.0,108590.0,5.21139973]
[1748017635333,0.35302849,108600.0,108590.0,5.19298243]
[1748017635540,0.70657468,108600.0,108590.0,4.71426568]
[1748017635740,0.70657468,108600.0,108590.0,4.99034568]
[1748017635946,0.33994649,108600.0,108590.0,4.99034568]
[1748017636160,0.70657468,108600.0,108590.0,4.71426568]
[1748017636375,0.26602642,108600.0,108590.0,5.83262568]
[1748017636575,0.29782642,108600.0,108590.0,5.83262568]
[1748017636954,0.29782642,108600.0,108590.0,6.23262568]
[1748017637375,0.08991516,108600.0,108590.0,6.457693]
[1748017637578,0.0807074,108600.0,108590.0,6.457693]
[1748017637800,0.08991474,108600.0,108590.0,6.457693]
[1748017638006,0.0807074,108600.0,108590.0,6.54723856]
[1748017638210,0.0489074,108600.0,108590.0,6.54723856]
[1748017638833,0.05811482,108600.0,108590.0,6.54723856]
[1748017639235,0.05811474,108600.0,108590.0,6.54723856]
[1748017639393,0.06732224,108600.0,108590.0,6.54723856]
[1748017639604,0.10723,108600.0,108590.0,6.54723856]
[1748017640176,0.10722991,108600.0,108590.0,6.54723856]
[1748017640421,0.1256456,108600.0,108590.0,6.556407]
[1748017640625,0.28218515,108600.0,108590.0,6.43923604]
[1748017640818,0.28218515,108600.0,108590.0,6.24584816]
[1748017640961,0.28218515,108600.0,108590.0,6.43923604]
[1748017641165,0.27297739,108600.0,108590.0,6.24584816]
[1748017641365,0.65414643,108600.0,108590.0,5.52504816]
[1748017641664,0.65414643,108600.0,108590.0,5.90572816]
[1748017641987,1.18424025,108600.0,108590.0,4.30976568]
[1748017642196,0.3770638,108600.0,108590.0,4.52126568]
[1748017642400,0.74369199,108600.0,108590.0,4.52126568]
[1748017643019,0.74369199,108600.0,108590.0,4.24526568]
[1748017643229,1.11032018,108600.0,108590.0,4.52126568]
[1748017643654,0.3770638,108600.0,108590.0,4.52126568]
[1748017643863,1.11032018,108600.0,108590.0,4.52126568]
[1748017644083,0.74369199,108600.0,108590.0,4.24526568]
[1748017644290,0.28751824,108600.0,108590.0,5.30590568]
[1748017644505,0.27297739,108600.0,108590.0,5.4900847]
[1748017644722,0.25148506,108600.0,108590.0,5.91511069]
[1748017644933,0.04383008,108600.0,108590.0,5.93352748]
[1748017645560,0.24640808,108600.0,108590.0,5.92431913]
[1748017645781,0.06224602,108600.0,108590.0,5.92431913]
[1748017645984,0.06224585,108600.0,108590.0,5.93352748]
[1748017646555,0.2464085,108600.0,108590.0,5.93352748]
[1748017646755,0.06224644,108600.0,108590.0,5.93352748]
[1748017646988,0.0254149,108600.0,108590.0,5.93352748]
[1748017647192,0.03462266,108600.0,108590.0,5.93352748]
[1748017647401,0.0162074,108600.0,108590.0,5.93352748]
[1748017647613,0.0162074,108600.0,108590.0,6.33352748]
[1748017647614,0.02541474,108600.0,108590.0,6.33352748]
[1748017648006,0.0162074,108600.0,108590.0,6.42307304]
[1748017648920,0.02541474,108600.0,108590.0,6.42307304]
[1748017649105,0.0162074,108600.0,108590.0,6.42307304]
[1748017650762,0.00792741,108600.0,108590.0,6.42307304]
[1748017651171,1e-08,108600.0,108590.0,6.42307304]
[1748017651578,0.0091665,108610.0,108600.0,0.55178533]
[1748017651801,0.01837324,108610.0,108600.0,4.79705101]
[1748017652228,0.01837324,108610.0,108600.0,5.19705101]
[1748017652444,0.02758015,108610.0,108600.0,5.19705101]
[1748017652657,0.03678723,108610.0,108600.0,5.19705101]
[1748017653079,0.02758015,108610.0,108600.0,5.19705101]
[1748017653771,0.08271221,108620.0,108600.0,5.187843]
[1748017653977,0.06012465,108620.0,108610.0,4.74449997]
[1748017654182,0.0785372,108620.0,108610.0,4.74219843]
[1748017654387,0.06933088,108620.0,108610.0,5.08219843]
[1748017654594,0.06933088,108620.0,108610.0,5.48219843]
[1748017654800,0.25345903,108620.0,108610.0,5.48190463]
[1748017655021,0.06012465,108620.0,108610.0,5.48190463]
[1748017655231,0.07777444,108620.0,108610.0,5.48190463]
[1748017655409,0.06933088,108620.0,108610.0,5.48190463]
[1748017655649,0.26266535,108620.0,108610.0,5.48190463]
[1748017655822,0.26266535,108620.0,108610.0,5.47269797]
[1748017656029,0.0785372,108620.0,108610.0,5.48190463]
[1748017656260,0.08698024,108620.0,108610.0,5.48190463]
[1748017656673,0.07777392,108620.0,108610.0,5.48190463]
[1748017656973,6.888e-05,108620.0,108610.0,5.57145019]
[1748017657178,0.07140318,108650.0,108640.0,0.21170735]
[1748017657395,0.01855845,108650.0,108640.0,5.57273303]
[1748017657637,0.000152,108650.0,108640.0,5.57273303]
[1748017657856,0.000152,108650.0,108640.0,6.31273303]
[1748017658061,0.000152,108650.0,108640.0,6.40227859]
[1748017658273,0.0905048,108670.0,108660.0,0.21166839]
[1748017658485,0.0905048,108670.0,108660.0,4.73285407]
[1748017658486,0.05830497,108670.0,108660.0,4.73285407]
[1748017658696,0.0276048,108670.0,108660.0,4.73285407]
[1748017658919,0.07970205,108680.0,108670.0,0.21164891]
[1748017659130,0.27292986,108680.0,108670.0,4.88095119]
[1748017659340,0.27292986,108680.0,108670.0,4.89935493]
[1748017659341,0.07970205,108680.0,108670.0,4.89935493]
[1748017659548,0.27292986,108680.0,108670.0,4.90855667]
[1748017659767,6e-05,108690.0,108670.0,5.62095068]
[1748017659950,0.27909887,108700.0,108690.0,0.20241008]
[1748017660192,0.29749804,108700.0,108690.0,4.84495593]
[1748017660403,0.29749804,108700.0,108690.0,5.20335611]
[1748017660404,0.04395747,108700.0,108690.0,5.20335611]
[1748017660621,0.05315617,108700.0,108690.0,5.20335611]
[1748017660831,0.25135082,108700.0,108690.0,5.88487524]
[1748017661047,0.06735818,108700.0,108690.0,5.89407571]
[1748017661263,0.02555838,108700.0,108690.0,5.92483466]
[1748017661505,0.03475758,108700.0,108690.0,5.93403454]
[1748017661745,0.05315641,108700.0,108690.0,5.94279136]
[1748017662174,0.01635935,108700.0,108690.0,5.94279136]
[1748017662388,0.01635935,108700.0,108690.0,6.03233692]
[1748017663041,0.01635935,108700.0,108690.0,6.43221692]
[1748017663254,0.04087946,108750.0,108730.0,0.0091965]
[1748017663470,0.40750765,108750.0,108740.0,5.9121786]
[1748017663674,0.40801426,108750.0,108740.0,5.92137425]
[1748017664362,0.4172089,108750.0,108740.0,5.92137425]
[1748017664581,1.06648625,108750.0,108740.0,4.58526568]
[1748017664802,1.06648625,108750.0,108740.0,5.30334568]
[1748017665010,1.06648625,108750.0,108740.0,5.29737392]
[1748017665220,1.06648625,108750.0,108740.0,5.50888658]
[1748017665221,0.06897099,108750.0,108740.0,5.50888658]
[1748017665450,0.0188963,108750.0,108740.0,5.50888658]
[1748017665877,0.0188963,108750.0,108740.0,5.50888684]
[1748017665878,0.22119488,108750.0,108740.0,5.50888684]
[1748017666090,0.23573573,108750.0,108740.0,5.51808274]
[1748017666296,0.26813573,108750.0,108740.0,5.508887]
[1748017666499,0.26813573,108750.0,108740.0,5.49049511]
[1748017666679,0.637479,108750.0,108740.0,5.29729392]
[1748017667126,0.637479,108750.0,108740.0,5.48121887]
[1748017667343,0.637479,108750.0,108740.0,5.50880717]
[1748017667772,0.637479,108750.0,108740.0,5.49041511]
[1748017667960,0.04744746,108750.0,108740.0,5.51800282]
[1748017668227,0.04263213,108750.0,108740.0,5.51800282]
[1748017668430,0.22654076,108750.0,108740.0,5.49949127]
[1748017668610,0.25014587,108750.0,108740.0,5.49949127]
[1748017668753,0.25014587,108750.0,108740.0,4.57929392]
[1748017668754,0.60757892,108750.0,108740.0,4.57929392]
[1748017668971,0.01504746,108750.0,108740.0,5.29717392]
[1748017669194,0.2173457,108750.0,108740.0,5.29717392]
[1748017669429,0.2173457,108750.0,108740.0,4.77241511]
[1748017669430,0.01504746,108750.0,108740.0,4.77241511]
[1748017669635,0.00050661,108750.0,108740.0,5.91488282]
[1748017669887,0.0088743,108750.0,108740.0,5.91488282]
[1748017671073,0.0088743,108750.0,108740.0,6.00442838]